fUSD/lending_fUSD_20240918
["ID","MTS","AMOUNT","RATE_DAILY","PERIOD"]
[338489838,1726701042274,-500.0,0.0001452,2]
[338489839,1726701042283,-500.0,0.0001452,2]
[338489842,1726701042304,-500.0,0.0001452,2]
[338489844,1726701042314,-500.0,0.0001452,2]
[338489846,1726701042330,-500.0,0.0001452,2]
[338489848,1726701042339,-500.0,0.0001452,2]
[338489850,1726701042349,-1365.01,0.0001452,2]
[338489852,1726701042358,-500.0,0.0001452,2]
[338489854,1726701042368,-181.6477987,0.0001452,2]
[338489856,1726701042378,-151.0,0.0001452,2]
[338489858,1726701042387,-500.0,0.0001452,2]
[338489860,1726701042399,-500.0,0.0001452,2]
[338489862,1726701042409,-688.08,0.0001452,2]
[338489896,1726701042721,-500.0,0.0001452,2]
[338489898,1726701042732,-500.0,0.0001452,2]
[338489900,1726701042742,-500.0,0.0001452,2]
[338489902,1726701042751,-500.0,0.0001452,2]
[338489904,1726701042760,-1305.62,0.0001452,2]
[338489906,1726701042770,-500.0,0.0001452,2]
[338489908,1726701042779,-1529.39,0.0001452,2]
[338489910,1726701042794,-820.34,0.0001452,2]
[338489912,1726701042803,-375.59119093,0.0001452,2]
[338489914,1726701042812,-840.26,0.0001452,2]
[338489916,1726701042822,-1587.69,0.0001452,2]
[338489918,1726701042831,-500.0,0.0001452,2]
[338489920,1726701042841,-500.0,0.0001452,2]
[338489922,1726701042850,-500.0,0.0001452,2]
[338489924,1726701042859,-500.0,0.0001452,2]
[338489926,1726701042868,-2175.59,0.0001452,2]
[338489928,1726701042878,-500.0,0.0001452,2]
[338489930,1726701042887,-500.0,0.0001452,2]
[338489932,1726701042896,-500.0,0.0001452,2]
[338489934,1726701042905,-500.0,0.0001452,2]
[338489936,1726701042915,-2947.94,0.0001452,2]
[338489938,1726701042924,-500.0,0.0001452,2]
[338489940,1726701042933,-500.0,0.0001452,2]
[338489942,1726701042942,-1529.64,0.0001452,2]
[338489944,1726701042951,-1041.82,0.0001452,2]
[338489946,1726701042960,-500.0,0.0001452,2]
[338489948,1726701042970,-500.0,0.0001452,2]
[338489950,1726701042979,-545.19,0.0001452,2]
[338489952,1726701042989,-500.0,0.0001452,2]
[338489955,1726701042999,-500.0,0.0001452,2]
[338489957,1726701043010,-500.0,0.0001452,2]
[338489959,1726701043019,-500.0,0.0001452,2]
[338489961,1726701043030,-632.88,0.0001452,2]
[338489963,1726701043041,-500.0,0.0001452,2]
[338489965,1726701043051,-2355.31,0.0001452,2]
[338489967,1726701043060,-724.13,0.0001452,2]
[338489969,1726701043069,-964.04,0.0001452,2]
[338489971,1726701043078,-500.0,0.0001452,2]
[338489973,1726701043088,-2266.75,0.0001452,2]
[338489975,1726701043097,-500.0,0.0001452,2]
[338489977,1726701043107,-2266.75,0.0001452,2]
[338489979,1726701043116,-2266.75,0.0001452,2]
[338489981,1726701043126,-500.0,0.0001452,2]
[338489983,1726701043135,-2266.75,0.0001452,2]
[338489985,1726701043144,-2266.75,0.0001452,2]
[338489987,1726701043154,-2266.75,0.0001452,2]
[338489989,1726701043164,-2266.75,0.0001452,2]
[338489991,1726701043175,-2266.75,0.0001452,2]
[338489993,1726701043185,-2266.75,0.0001452,2]
[338489995,1726701043196,-2266.75,0.0001452,2]
[338489997,1726701043206,-2266.75,0.0001452,2]
[338489999,1726701043216,-151.0,0.0001452,2]
[338490001,1726701043226,-2266.75,0.0001452,2]
[338490002,1726701043235,-2266.75,0.0001452,2]
[338490004,1726701043245,-2266.75,0.0001452,2]
[338490006,1726701043255,-2266.75,0.0001452,2]
[338490007,1726701043265,-2266.75,0.0001452,2]
[338490008,1726701043275,-2266.75,0.0001452,2]
[338490009,1726701043285,-500.0,0.0001452,2]
[338490010,1726701043301,-500.0,0.0001452,2]
[338490011,1726701043312,-500.0,0.0001452,2]
[338490012,1726701043325,-500.0,0.0001452,2]
[338490013,1726701043335,-500.0,0.0001452,2]
[338490014,1726701043344,-500.0,0.0001452,2]
[338490015,1726701043354,-1544.57,0.0001452,2]
[338490016,1726701043365,-500.0,0.0001452,2]
[338490017,1726701043374,-500.0,0.0001452,2]
[338490018,1726701043384,-500.0,0.0001452,2]
[338490019,1726701043395,-2163.53,0.0001452,2]
[338490020,1726701043405,-500.0,0.0001452,2]
[338490021,1726701043417,-500.0,0.0001452,2]
[338490022,1726701043426,-500.0,0.0001452,2]
[338490023,1726701043436,-1216.3,0.0001452,2]
[338490024,1726701043446,-500.0,0.0001452,2]
[338490026,1726701043456,-985.59,0.0001452,2]
[338490028,1726701043465,-500.0,0.0001452,2]
[338490030,1726701043474,-500.0,0.0001452,2]
[338490032,1726701043484,-500.0,0.0001452,2]
[338490034,1726701043494,-518.43088832,0.0001452,2]
[338490036,1726701043503,-572.28,0.0001452,2]
[338490038,1726701043513,-1093.12,0.0001452,2]
[338490040,1726701043523,-1460.37,0.0001452,2]
[338490042,1726701043532,-500.0,0.0001452,2]
[338490044,1726701043548,-500.0,0.0001452,2]
[338490046,1726701043558,-500.0,0.0001452,2]
[338490048,1726701043567,-500.0,0.0001452,2]
[338490050,1726701043577,-500.0,0.0001452,2]
[338490052,1726701043587,-1806.32,0.0001452,2]
[338490054,1726701043596,-500.0,0.0001452,2]
[338490056,1726701043607,-521.74,0.0001452,2]
[338490059,1726701043616,-804.5,0.0001452,2]
[338490061,1726701043625,-151.0,0.0001452,2]
[338490063,1726701043635,-1014.0,0.0001452,2]
[338490065,1726701043645,-500.0,0.0001452,2]
[338490067,1726701043654,-500.0,0.0001452,2]
[338490069,1726701043663,-1092.56,0.0001452,2]
[338490071,1726701043672,-1080.28,0.0001452,2]
[338490073,1726701043681,-686.78,0.0001452,2]
[338490075,1726701043690,-500.0,0.0001452,2]
[338490077,1726701043699,-500.0,0.0001452,2]
[338490078,1726701043709,-1836.61,0.0001452,2]
[338490081,1726701043719,-801.6,0.0001452,2]
[338490082,1726701043728,-1929.03,0.0001452,2]
[338490084,1726701043737,-570.58,0.0001452,2]
[338490086,1726701043746,-2816.9,0.0001452,2]
[338490088,1726701043755,-2020.31,0.0001452,2]
[338490090,1726701043765,-743.15,0.0001452,2]
[338490092,1726701043774,-603.19152909,0.0001452,2]
[338490094,1726701043784,-500.0,0.0001452,2]
[338490096,1726701043799,-949.37,0.0001452,2]
[338490099,1726701043809,-967.69,0.0001452,2]
[338490100,1726701043818,-736.82,0.0001452,2]
[338490102,1726701043827,-2254.5,0.0001452,2]
[338490104,1726701043837,-890.15,0.0001452,2]
[338490107,1726701043846,-500.0,0.0001452,2]
[338490109,1726701043855,-500.0,0.0001452,2]
[338490112,1726701043864,-500.0,0.0001452,2]
[338490115,1726701043874,-500.0,0.0001452,2]
[338490117,1726701043883,-500.0,0.0001452,2]
[338490119,1726701043893,-3081.75,0.0001452,2]
[338490121,1726701043902,-500.0,0.0001452,2]
[338490123,1726701043912,-1641.57,0.0001452,2]
[338490126,1726701043924,-500.0,0.0001452,2]
[338490128,1726701043934,-500.0,0.0001452,2]
[338490130,1726701043943,-883.73,0.0001452,2]
[338490132,1726701043952,-500.0,0.0001452,2]
[338490134,1726701043961,-500.0,0.0001452,2]
[338490136,1726701043971,-514.65,0.0001452,2]
[338490138,1726701043980,-500.0,0.0001452,2]
[338490140,1726701043989,-151.0,0.0001452,2]
[338490141,1726701043999,-151.0,0.0001452,2]
[338490143,1726701044008,-1160.13,0.0001452,2]
[338490146,1726701044019,-500.0,0.0001452,2]
[338490148,1726701044028,-500.0,0.0001452,2]
[338490149,1726701044039,-500.0,0.0001452,2]
[338490151,1726701044048,-2332.5,0.0001452,2]
[338490153,1726701044057,-500.0,0.0001452,2]
[338490155,1726701044066,-500.0,0.0001452,2]
[338490158,1726701044075,-500.0,0.0001452,2]
[338490159,1726701044085,-500.0,0.0001452,2]
[338490161,1726701044094,-500.0,0.0001452,2]
[338490164,1726701044104,-1274.13,0.0001452,2]
[338490166,1726701044114,-669.85,0.0001452,2]
[338490168,1726701044123,-500.0,0.0001452,2]
[338490170,1726701044132,-500.0,0.0001452,2]
[338490172,1726701044143,-2915.91,0.0001452,2]
[338490174,1726701044152,-500.0,0.0001452,2]
[338490176,1726701044161,-2134.84,0.0001452,2]
[338490178,1726701044170,-500.0,0.0001452,2]
[338490180,1726701044180,-500.0,0.0001452,2]
[338490182,1726701044189,-2636.66,0.0001452,2]
[338490184,1726701044198,-500.0,0.0001452,2]
[338490186,1726701044209,-563.76,0.0001452,2]
[338490188,1726701044218,-577.43891943,0.0001452,2]
[338490190,1726701044227,-544.59,0.0001452,2]
[338490192,1726701044237,-500.0,0.0001452,2]
[338490194,1726701044247,-1222.95,0.0001452,2]
[338490196,1726701044256,-500.0,0.0001452,2]
[338490198,1726701044266,-1376.13,0.0001452,2]
[338490200,1726701044275,-500.0,0.0001452,2]
[338490202,1726701044284,-2608.22,0.0001452,2]
[338490204,1726701044297,-500.0,0.0001452,2]
[338490206,1726701044306,-517.1432433,0.0001452,2]
[338490208,1726701044320,-3082.09,0.0001452,2]
[338490210,1726701044331,-500.0,0.0001452,2]
[338490212,1726701044340,-500.0,0.0001452,2]
[338490214,1726701044349,-1011.15,0.0001452,2]
[338490216,1726701044359,-1127.73,0.0001452,2]
[338490218,1726701044369,-2803.41,0.0001452,2]
[338490220,1726701044379,-500.0,0.0001452,2]
[338490222,1726701044391,-2170.39,0.0001452,2]
[338490224,1726701044401,-513.1,0.0001452,2]
[338490226,1726701044411,-500.0,0.0001452,2]
[338490228,1726701044422,-1579.71,0.0001452,2]
[338490230,1726701044431,-500.0,0.0001452,2]
[338490232,1726701044442,-500.0,0.0001452,2]
[338490234,1726701044453,-1179.39,0.0001452,2]
[338490236,1726701044463,-500.0,0.0001452,2]
[338490238,1726701044472,-2255.2,0.0001452,2]
[338490240,1726701044483,-1887.17,0.0001452,2]
[338490243,1726701044494,-500.0,0.0001452,2]
[338490245,1726701044504,-500.0,0.0001452,2]
[338490247,1726701044514,-500.0,0.0001452,2]
[338490249,1726701044523,-2196.83,0.0001452,2]
[338490251,1726701044532,-500.0,0.0001452,2]
[338490253,1726701044544,-500.0,0.0001452,2]
[338490255,1726701044553,-2452.04,0.0001452,2]
[338490257,1726701044563,-500.0,0.0001452,2]
[338490259,1726701044572,-631.45,0.0001452,2]
[338490260,1726701044581,-500.0,0.0001452,2]
[338490261,1726701044590,-500.0,0.0001452,2]
[338490262,1726701044599,-327.02946864,0.0001452,2]
[338490263,1726701044608,-500.0,0.0001452,2]
[338490264,1726701044617,-715.96,0.0001452,2]
[338490265,1726701044627,-1351.54,0.0001452,2]
[338490266,1726701044636,-754.89,0.0001452,2]
[338490267,1726701044646,-2197.3,0.0001452,2]
[338490268,1726701044655,-500.0,0.0001452,2]
[338490269,1726701044665,-1236.04,0.0001452,2]
[338490270,1726701044674,-803.22,0.0001452,2]
[338490271,1726701044683,-500.0,0.0001452,2]
[338490272,1726701044692,-500.0,0.0001452,2]
[338490273,1726701044702,-500.0,0.0001452,2]
[338490274,1726701044711,-1690.57,0.0001452,2]
[338490275,1726701044720,-2258.98,0.0001452,2]
[338490276,1726701044730,-500.0,0.0001452,2]
[338490277,1726701044740,-709.85,0.0001452,2]
[338490278,1726701044749,-819.0,0.0001452,2]
[338490279,1726701044758,-272.98278207,0.0001452,2]
[338490280,1726701044767,-151.0,0.0001452,2]
[338490281,1726701044776,-151.0,0.0001452,2]
[338490282,1726701044786,-875.49,0.0001452,2]
[338490283,1726701044800,-1219.19,0.0001452,2]
[338490284,1726701044811,-1259.13,0.0001452,2]
[338490285,1726701044820,-978.51,0.0001452,2]
[338490286,1726701044830,-622.96,0.0001452,2]
[338490287,1726701044839,-500.0,0.0001452,2]
[338490288,1726701044849,-500.0,0.0001452,2]
[338490289,1726701044859,-896.83,0.0001452,2]
[338490290,1726701044868,-500.0,0.0001452,2]
[338490291,1726701044879,-155.817805,0.0001452,2]
[338490292,1726701044889,-155.817805,0.0001452,2]
[338490293,1726701044898,-500.0,0.0001452,2]
[338490294,1726701044908,-500.0,0.0001452,2]
[338490295,1726701044918,-1485.25,0.0001452,2]
[338490296,1726701044928,-500.0,0.0001452,2]
[338490297,1726701044938,-155.817805,0.0001452,2]
[338490298,1726701044947,-155.817805,0.0001452,2]
[338490299,1726701044956,-1211.31,0.0001452,2]
[338490301,1726701044965,-512.85,0.0001452,2]
[338490303,1726701044975,-910.29,0.0001452,2]
[338490305,1726701044985,-500.0,0.0001452,2]
[338490307,1726701044994,-500.0,0.0001452,2]
[338490309,1726701045003,-500.0,0.0001452,2]
[338490311,1726701045013,-598.97,0.0001452,2]
[338490312,1726701045022,-519.67,0.0001452,2]
[338490313,1726701045031,-500.0,0.0001452,2]
[338490314,1726701045045,-3138.33,0.0001452,2]
[338490315,1726701045054,-500.0,0.0001452,2]
[338490316,1726701045063,-500.0,0.0001452,2]
[338490317,1726701045072,-1193.9,0.0001452,2]
[338490318,1726701045082,-500.0,0.0001452,2]
[338490319,1726701045091,-500.0,0.0001452,2]
[338490320,1726701045100,-534.53518454,0.0001452,2]
[338490321,1726701045109,-588.38,0.0001452,2]
[338490322,1726701045119,-1277.44,0.0001452,2]
[338490323,1726701045129,-1080.69,0.0001452,2]
[338490324,1726701045138,-500.0,0.0001452,2]
[338490325,1726701045148,-500.0,0.0001452,2]
[338490326,1726701045157,-1385.29,0.0001452,2]
[338490327,1726701045167,-650.31,0.0001452,2]
[338490328,1726701045176,-1123.11,0.0001452,2]
[338490329,1726701045186,-500.0,0.0001452,2]
[338490330,1726701045196,-500.0,0.0001452,2]
[338490332,1726701045205,-500.0,0.0001452,2]
[338490334,1726701045214,-500.0,0.0001452,2]
[338490336,1726701045223,-500.0,0.0001452,2]
[338490338,1726701045232,-500.0,0.0001452,2]
[338490340,1726701045242,-500.0,0.0001452,2]
[338490342,1726701045251,-500.0,0.0001452,2]
[338490344,1726701045260,-1263.27,0.0001452,2]
[338490346,1726701045269,-500.0,0.0001452,2]
[338490348,1726701045279,-500.0,0.0001452,2]
[338490350,1726701045290,-500.0,0.0001452,2]
[338490352,1726701045299,-500.0,0.0001452,2]
[338490354,1726701045309,-151.0,0.0001452,2]
[338490356,1726701045321,-500.0,0.0001452,2]
[338490358,1726701045330,-500.0,0.0001452,2]
[338490360,1726701045339,-151.0,0.0001452,2]
[338490362,1726701045348,-500.0,0.0001452,2]
[338490364,1726701045358,-500.0,0.0001452,2]
[338490366,1726701045367,-552.52889513,0.0001452,2]
[338490368,1726701045377,-500.0,0.0001452,2]
[338490370,1726701045386,-500.0,0.0001452,2]
[338490372,1726701045395,-500.0,0.0001452,2]
[338490374,1726701045404,-827.93,0.0001452,2]
[338490375,1726701045414,-500.0,0.0001452,2]
[338490378,1726701045423,-1609.2,0.0001452,2]
[338490380,1726701045432,-1249.97,0.0001452,2]
[338490381,1726701045442,-500.0,0.0001452,2]
[338490383,1726701045451,-500.0,0.0001452,2]
[338490385,1726701045460,-2757.98,0.0001452,2]
[338490387,1726701045469,-500.0,0.0001452,2]
[338490389,1726701045479,-151.0,0.0001452,2]
[338490391,1726701045488,-151.0,0.0001452,2]
[338490393,1726701045497,-5812.57,0.0001452,2]
[338490395,1726701045506,-500.37641356,0.0001452,2]
[338490397,1726701045517,-500.0,0.0001452,2]
[338490399,1726701045526,-2322.08,0.0001452,2]
[338490401,1726701045537,-1943.4,0.0001452,2]
[338490404,1726701045557,-5978.39,0.0001452,2]
[338490406,1726701045566,-2199.37,0.0001452,2]
[338490408,1726701045575,-500.0,0.0001452,2]
[338490410,1726701045585,-500.0,0.0001452,2]
[338490412,1726701045594,-500.0,0.0001452,2]
[338490414,1726701045603,-500.0,0.0001452,2]
[338490416,1726701045612,-500.0,0.0001452,2]
[338490418,1726701045622,-500.0,0.0001452,2]
[338490420,1726701045632,-500.0,0.0001452,2]
[338490422,1726701045642,-500.0,0.0001452,2]
[338490424,1726701045651,-500.0,0.0001452,2]
[338490426,1726701045661,-500.0,0.0001452,2]
[338490428,1726701045670,-966.25,0.0001452,2]
[338490430,1726701045680,-500.0,0.0001452,2]
[338490432,1726701045690,-500.0,0.0001452,2]
[338490434,1726701045700,-500.0,0.0001452,2]
[338490436,1726701045709,-500.0,0.0001452,2]
[338490438,1726701045719,-500.0,0.0001452,2]
[338490440,1726701045729,-500.0,0.0001452,2]
[338490442,1726701045738,-500.0,0.0001452,2]
[338490444,1726701045747,-500.0,0.0001452,2]
[338490446,1726701045758,-500.0,0.0001452,2]
[338490448,1726701045767,-500.0,0.0001452,2]
[338490450,1726701045776,-500.0,0.0001452,2]
[338490452,1726701045785,-756.58,0.0001452,2]
[338490454,1726701045800,-4471.51,0.0001452,2]
[338490456,1726701045809,-500.0,0.0001452,2]
[338490458,1726701045819,-3614.45,0.0001452,2]
[338490460,1726701045827,-500.0,0.0001452,2]
[338490462,1726701045838,-851.87,0.0001452,2]
[338490464,1726701045847,-500.0,0.0001452,2]
[338490466,1726701045857,-500.0,0.0001452,2]
[338490468,1726701045867,-1891.26,0.0001452,2]
[338490470,1726701045876,-500.0,0.0001452,2]
[338490472,1726701045886,-517.81,0.0001452,2]
[338490474,1726701045896,-1033.4,0.0001452,2]
[338490476,1726701045905,-500.0,0.0001452,2]
[338490478,1726701045914,-500.0,0.0001452,2]
[338490480,1726701045923,-1135.0,0.0001452,2]
[338490482,1726701045932,-4939.37,0.0001452,2]
[338490484,1726701045942,-746.78,0.0001452,2]
[338490486,1726701045952,-500.0,0.0001452,2]
[338490488,1726701045962,-500.0,0.0001452,2]
[338490490,1726701045971,-2440.77,0.0001452,2]
[338490492,1726701045981,-995.46,0.0001452,2]
[338490494,1726701045990,-500.0,0.0001452,2]
[338490496,1726701045999,-861.09,0.0001452,2]
[338490498,1726701046008,-500.0,0.0001452,2]
[338490500,1726701046018,-647.21,0.0001452,2]
[338490502,1726701046027,-649.26,0.0001452,2]
[338490504,1726701046037,-500.0,0.0001452,2]
[338490506,1726701046046,-500.0,0.0001452,2]
[338490508,1726701046055,-2188.41,0.0001452,2]
[338490510,1726701046065,-500.0,0.0001452,2]
[338490512,1726701046074,-717.95,0.0001452,2]
[338490514,1726701046083,-500.0,0.0001452,2]
[338490516,1726701046092,-500.0,0.0001452,2]
[338490518,1726701046102,-500.0,0.0001452,2]
[338490520,1726701046111,-500.0,0.0001452,2]
[338490522,1726701046121,-500.0,0.0001452,2]
[338490524,1726701046130,-500.0,0.0001452,2]
[338490526,1726701046139,-1768.19,0.0001452,2]
[338490528,1726701046148,-500.0,0.0001452,2]
[338490530,1726701046158,-500.0,0.0001452,2]
[338490532,1726701046167,-500.0,0.0001452,2]
[338490534,1726701046176,-500.0,0.0001452,2]
[338490536,1726701046186,-5431.1,0.0001452,2]
[338490538,1726701046195,-2176.22,0.0001452,2]
[338490540,1726701046205,-500.0,0.0001452,2]
[338490542,1726701046214,-313.25548736,0.0001452,2]
[338490544,1726701046224,-500.0,0.0001452,2]
[338490546,1726701046233,-686.6,0.0001452,2]
[338490548,1726701046243,-500.0,0.0001452,2]
[338490549,1726701046252,-1407.53,0.0001452,2]
[338490552,1726701046262,-1435.57,0.0001452,2]
[338490553,1726701046271,-924.41,0.0001452,2]
[338490555,1726701046280,-500.0,0.0001452,2]
[338490557,1726701046291,-500.0,0.0001452,2]
[338490559,1726701046301,-500.0,0.0001452,2]
[338490561,1726701046310,-2812.29,0.0001452,2]
[338490563,1726701046321,-1758.09,0.0001452,2]
[338490565,1726701046331,-2227.98,0.0001452,2]
[338490567,1726701046341,-1853.31,0.0001452,2]
[338490569,1726701046351,-3816.19,0.0001452,2]
[338490571,1726701046360,-500.0,0.0001452,2]
[338490572,1726701046369,-500.0,0.0001452,2]
[338490573,1726701046379,-1938.91,0.0001452,2]
[338490574,1726701046388,-1589.62,0.0001452,2]
[338490575,1726701046398,-500.0,0.0001452,2]
[338490576,1726701046408,-202.3411124,0.0001452,2]
[338490577,1726701046418,-500.0,0.0001452,2]
[338490578,1726701046428,-3841.91,0.0001452,2]
[338490580,1726701046438,-500.0,0.0001452,2]
[338490582,1726701046447,-500.0,0.0001452,2]
[338490584,1726701046456,-5541.81,0.0001452,2]
[338490586,1726701046466,-500.0,0.0001452,2]
[338490588,1726701046475,-500.0,0.0001452,2]
[338490590,1726701046485,-1386.23,0.0001452,2]
[338490591,1726701046494,-1330.15,0.0001452,2]
[338490592,1726701046504,-500.0,0.0001452,2]
[338490593,1726701046514,-500.0,0.0001452,2]
[338490594,1726701046524,-500.0,0.0001452,2]
[338490595,1726701046534,-500.0,0.0001452,2]
[338490596,1726701046546,-151.0,0.0001452,2]
[338490597,1726701046555,-500.0,0.0001452,2]
[338490598,1726701046565,-500.0,0.0001452,2]
[338490599,1726701046574,-151.0,0.0001452,2]
[338490600,1726701046584,-1220.91,0.0001452,2]
[338490601,1726701046594,-2415.06,0.0001452,2]
[338490602,1726701046603,-1439.01,0.0001452,2]
[338490603,1726701046612,-500.0,0.0001452,2]
[338490604,1726701046622,-3430.08,0.0001452,2]
[338490605,1726701046632,-4093.45,0.0001452,2]
[338490606,1726701046642,-500.0,0.0001452,2]
[338490607,1726701046652,-500.0,0.0001452,2]
[338490608,1726701046661,-549.62,0.0001452,2]
[338490609,1726701046671,-2072.94,0.0001452,2]
[338490610,1726701046680,-500.0,0.0001452,2]
[338490611,1726701046690,-2194.97,0.0001452,2]
[338490612,1726701046699,-500.0,0.0001452,2]
[338490613,1726701046709,-591.13,0.0001452,2]
[338490614,1726701046718,-500.0,0.0001452,2]
[338490615,1726701046727,-1428.86,0.0001452,2]
[338490616,1726701046737,-500.0,0.0001452,2]
[338490617,1726701046747,-862.09,0.0001452,2]
[338490618,1726701046757,-1816.29,0.0001452,2]
[338490620,1726701047020,-231.77945263,0.0001452,2]
[338490621,1726701047030,-500.0,0.0001452,2]
[338490622,1726701047041,-500.0,0.0001452,2]
[338490623,1726701047050,-500.0,0.0001452,2]
[338490624,1726701047060,-500.0,0.0001452,2]
[338490625,1726701047070,-500.0,0.0001452,2]
[338490626,1726701047080,-1367.59,0.0001452,2]
[338490627,1726701047089,-500.0,0.0001452,2]
[338490628,1726701047099,-1241.93,0.0001452,2]
[338490629,1726701047109,-500.0,0.0001452,2]
[338490630,1726701047119,-740.68,0.0001452,2]
[338490631,1726701047128,-500.0,0.0001452,2]
[338490632,1726701047138,-20000.0,0.0001452,2]
[338490633,1726701047147,-1448.18,0.0001452,2]
[338490634,1726701047157,-2541.4,0.0001452,2]
[338490635,1726701047167,-500.0,0.0001452,2]
[338490636,1726701047176,-500.0,0.0001452,2]
[338490637,1726701047186,-500.0,0.0001452,2]
[338490638,1726701047195,-190.44772996,0.0001452,2]
[338490639,1726701047205,-3465.15,0.0001452,2]
[338490640,1726701047215,-1169.59,0.0001452,2]
[338490641,1726701047224,-500.0,0.0001452,2]
[338490642,1726701047234,-5299.6,0.0001452,2]
[338490643,1726701047244,-500.0,0.0001452,2]
[338490644,1726701047254,-500.0,0.0001452,2]
[338490645,1726701047264,-500.0,0.0001452,2]
[338490646,1726701047273,-500.0,0.0001452,2]
[338490647,1726701047283,-561.77,0.0001452,2]
[338490648,1726701047296,-402.13238249,0.0001452,2]
[338490649,1726701047306,-3175.34,0.0001452,2]
[338490650,1726701047316,-2163.55,0.0001452,2]
[338490651,1726701047327,-1029.73,0.0001452,2]
[338490652,1726701047337,-1738.75,0.0001452,2]
[338490653,1726701047347,-500.0,0.0001452,2]
[338490654,1726701047358,-1781.33,0.0001452,2]
[338490655,1726701047368,-500.0,0.0001452,2]
[338490656,1726701047378,-1251.52,0.0001452,2]
[338490657,1726701047388,-219.86926097,0.0001452,2]
[338490658,1726701047399,-500.0,0.0001452,2]
[338490659,1726701047408,-963.38,0.0001452,2]
[338490660,1726701047419,-578.86,0.0001452,2]
[338490661,1726701047429,-500.0,0.0001452,2]
[338490662,1726701047440,-2003.72,0.0001452,2]
[338490663,1726701047449,-500.0,0.0001452,2]
[338490664,1726701047459,-1316.93,0.0001452,2]
[338490665,1726701047469,-500.0,0.0001452,2]
[338490666,1726701047479,-2137.77,0.0001452,2]
[338490667,1726701047489,-758.45,0.0001452,2]
[338490668,1726701047498,-1840.82,0.0001452,2]
[338490669,1726701047508,-500.0,0.0001452,2]
[338490670,1726701047518,-500.0,0.0001452,2]
[338490671,1726701047528,-500.0,0.0001452,2]
[338490672,1726701047539,-690.89,0.0001452,2]
[338490673,1726701047549,-500.0,0.0001452,2]
[338490674,1726701047558,-569.38,0.0001452,2]
[338490675,1726701047568,-7553.49,0.0001452,2]
[338490676,1726701047578,-3309.88,0.0001452,2]
[338490677,1726701047588,-3043.08,0.0001452,2]
[338490678,1726701047598,-500.0,0.0001452,2]
[338490679,1726701047607,-1415.65,0.0001452,2]
[338490680,1726701047617,-634.65,0.0001452,2]
[338490681,1726701047626,-634.13,0.0001452,2]
[338490682,1726701047636,-500.0,0.0001452,2]
[338490683,1726701047645,-500.0,0.0001452,2]
[338490684,1726701047655,-500.0,0.0001452,2]
[338490685,1726701047665,-836.85,0.0001452,2]
[338490686,1726701047674,-3025.58,0.0001452,2]
[338490687,1726701047684,-671.33,0.0001452,2]
[338490688,1726701047693,-3333.64,0.0001452,2]
[338490689,1726701047702,-2062.64,0.0001452,2]
[338490690,1726701047712,-1259.0,0.0001452,2]